bitfinex/quotes_SOLUSD_20240826
["timestamp","ask_amount","ask_price","bid_price","bid_amount"]
[1724671307152,45.0,162.04,161.98,1.23458387]
[1724671307349,45.0,162.05,161.98,1.23458387]
[1724671307748,45.0,162.06,161.98,1.23458387]
[1724671307961,389.71053007,162.07,161.97,15.4365]
[1724671308183,401.43932763,162.07,161.97,15.4365]
[1724671308385,20.0,162.06,161.98,11.72879756]
[1724671309499,45.0,162.05,161.97,15.4365]
[1724671312660,45.0,162.05,161.97,16.67115342]
[1724671313863,45.0,162.05,161.97,15.4365]
[1724671314465,45.0,162.05,161.97,16.67115388]
[1724671314985,45.0,162.05,161.98,11.72879756]
[1724671315690,45.0,162.05,161.98,12.96332655]
[1724671316288,45.0,162.05,161.98,11.72879756]
[1724671318092,45.0,162.05,161.97,15.4365]
[1724671318293,45.0,162.05,161.97,27.16529756]
[1724671318606,20.0,162.06,161.99,11.72879756]
[1724671322100,45.0,162.05,161.99,11.72879756]
[1724671323509,20.0,162.06,162.0,1.23453142]
[1724671323800,0.8405069,162.07,162.01,11.72879756]
[1724671324007,0.8405069,162.07,162.02,15.8237]
[1724671328807,11.72879756,162.05,161.97,15.1159]
[1724671329005,45.0,162.04,161.97,15.1159]
[1724671330404,12.56930446,162.07,161.97,15.1159]
[1724671330610,65.0,162.06,161.97,15.1159]
[1724671333410,11.72879756,162.05,161.97,15.1159]
[1724671333575,45.0,162.04,161.97,15.1159]
[1724671337515,11.72879756,162.03,161.97,15.1159]
[1724671337690,45.0,162.02,161.97,15.1159]
[1724671338606,45.0,162.03,161.97,15.1159]
[1724671339130,45.0,162.03,161.98,11.72879756]
[1724671339318,45.0,162.04,161.98,11.72879756]
[1724671340511,388.8,162.05,161.98,11.72879756]
[1724671340816,388.8,162.05,162.0,11.72879756]
[1724671341510,388.8,162.05,162.01,1.23441224]
[1724671341709,388.8,162.05,162.03,16.0889]
[1724671343216,45.0,162.04,161.98,21.7587]
[1724671345606,45.0,162.05,161.98,21.7587]
[1724671346128,45.0,162.05,161.98,33.48749756]
[1724671346502,388.8,162.06,161.98,33.48749756]
[1724671349717,45.0,162.05,161.98,33.48749756]
[1724671352025,45.0,162.05,161.98,21.7587]
[1724671352190,45.0,162.05,161.98,33.48749756]
[1724671353509,45.0,162.05,161.98,21.7587]
[1724671358431,56.72879756,162.05,161.98,21.7587]
[1724671360115,388.8,162.06,161.99,1.23461277]
[1724671360293,388.8,162.06,161.98,21.7587]
[1724671360294,20.0,162.05,161.98,21.7587]
[1724671361837,388.8,162.06,161.98,21.7587]
[1724671364628,388.8,162.06,161.99,11.72879756]
[1724671364796,388.8,162.06,161.98,21.7587]
[1724671364797,388.8,162.06,162.02,16.1492]
[1724671366323,388.8,162.06,162.02,17.38342246]
[1724671366903,388.8,162.06,162.02,29.11222002]
[1724671368541,0.8405069,162.07,162.02,29.11222002]
[1724671370626,0.8405069,162.07,162.02,16.1492]
[1724671371026,20.8405069,162.07,162.02,16.1492]
[1724671371733,0.8405069,162.07,162.02,16.1492]
[1724671372807,12.56930446,162.07,162.02,16.1492]
[1724671373034,65.0,162.06,162.02,16.1492]
[1724671374153,20.0,162.06,162.02,16.1492]
[1724671375736,12.56930446,162.07,162.02,16.1492]
[1724671375935,65.0,162.06,162.02,16.1492]
[1724671378513,11.72879756,162.05,162.02,16.1492]
[1724671378716,0.8405069,162.07,162.02,16.1492]
[1724671379740,0.8405069,162.07,162.02,17.38342087]
[1724671381127,0.8405069,162.07,162.02,16.1492]
[1724671383362,11.72879756,162.05,161.98,22.7332]
[1724671384270,11.72879756,162.05,161.84,53.3708124]
[1724671384271,11.72879756,162.01,161.94,21.8478]
[1724671384862,20.0,162.0,161.94,21.8478]
[1724671385872,11.72879756,161.97,161.9,6.3552]
[1724671386044,11.72879756,161.95,161.9,21.9833]
[1724671386238,65.0,161.94,161.9,21.9833]
[1724671386467,20.0,161.94,161.9,21.9833]
[1724671388346,20.0,161.94,161.84,6.1638]
[1724671388548,11.72879756,161.93,161.84,17.89259756]
[1724671389054,20.0,161.94,161.84,17.89259756]
[1724671389477,20.0,161.94,161.88,11.72879756]
[1724671389651,20.0,161.97,161.88,11.72879756]
[1724671390857,20.0,161.97,161.89,1.23506061]
[1724671391056,20.0,161.97,161.88,11.72879756]
[1724671391367,11.72879756,161.96,161.87,16.1341]
[1724671392077,20.0,161.95,161.87,16.1341]
[1724671392573,20.0,161.95,161.87,27.86289756]
[1724671394251,11.72879756,161.94,161.87,16.1341]
[1724671394582,20.0,161.93,161.87,16.1341]
[1724671396552,11.72879756,161.92,161.84,6.1638]
[1724671396785,11.72879756,161.88,161.83,15.28]
[1724671396959,11.72879756,161.88,161.79,6.6122]
[1724671396960,65.0,161.87,161.79,22.9159]
[1724671397279,11.72879756,161.84,161.79,22.9159]
[1724671397662,45.0,161.87,161.79,22.9159]
[1724671397869,11.72879756,161.85,161.79,22.9159]
[1724671398059,45.0,161.84,161.79,22.9159]
[1724671398486,11.72879756,161.85,161.79,22.9159]
[1724671398659,38.56,161.91,161.79,22.9159]
[1724671398870,11.72879756,161.87,161.79,22.9159]
[1724671399067,65.0,161.86,161.79,22.9159]
[1724671399456,20.0,161.86,161.79,34.64469756]
[1724671399682,20.0,161.88,161.79,34.64469756]
[1724671399986,20.0,161.88,161.79,52.27887997]
[1724671400278,29.36297997,161.94,161.81,29.36297997]
[1724671400458,29.36297997,161.94,161.82,1.23564905]
[1724671400860,423.8837,161.96,161.82,1.23564905]
[1724671401086,29.36297997,161.95,161.82,1.23564905]
[1724671401583,29.36297997,161.93,161.81,29.36297997]
[1724671401881,45.0,161.92,161.79,52.27887997]
[1724671402782,49.36297997,161.91,161.79,22.9159]
[1724671402986,29.36297997,161.87,161.79,22.9159]
[1724671403171,20.0,161.86,161.79,22.9159]
[1724671407265,20.0,161.88,161.79,22.9159]
[1724671407597,74.36297997,161.87,161.79,22.9159]
[1724671407760,20.0,161.86,161.79,22.9159]
[1724671410161,45.0,161.85,161.79,16.3037]
[1724671413100,29.36297997,161.83,161.74,22.4956]
[1724671413390,20.0,161.82,161.74,22.4956]
[1724671415666,74.36297997,161.81,161.7,15.3837]
[1724671415871,20.0,161.8,161.7,15.3837]
[1724671416488,20.0,161.8,161.71,1.23644727]
[1724671416872,20.0,161.8,161.72,29.36297997]
[1724671417191,20.0,161.82,161.72,29.36297997]
[1724671417693,29.36297997,161.81,161.7,15.3837]
[1724671417903,29.36297997,161.79,161.7,15.3837]
[1724671418063,20.0,161.78,161.7,15.3837]
[1724671418694,74.36297997,161.77,161.7,16.4679]
[1724671419088,20.0,161.76,161.7,16.4679]
[1724671420996,20.0,161.76,161.63,22.0566]
[1724671421176,20.0,161.78,161.65,29.36297997]
[1724671421802,20.0,161.78,161.66,45.0]
[1724671422703,45.0,161.77,161.65,29.36297997]
[1724671422891,20.0,161.76,161.65,29.36297997]
[1724671423409,20.0,161.76,161.63,51.41957997]
[1724671423614,55.82930638,161.76,161.63,51.41957997]
[1724671424313,45.0,161.75,161.63,51.41957997]
[1724671424476,20.0,161.74,161.63,51.41957997]
[1724671425316,20.0,161.74,161.63,22.0566]
[1724671425476,20.0,161.74,161.63,51.41957997]
[1724671426288,20.0,161.74,161.63,22.0566]
[1724671427187,45.0,161.73,161.63,22.0566]
[1724671428388,45.0,161.73,161.63,15.8059]
[1724671428593,20.0,161.72,161.63,15.8059]
[1724671429304,20.0,161.72,161.63,15.3059]
[1724671431288,29.36297997,161.69,161.55,6.5251]
[1724671431476,20.0,161.68,161.56,29.36297997]
[1724671432103,20.0,161.68,161.57,15.9142]
[1724671432478,20.0,161.68,161.58,29.36297997]
[1724671432683,20.0,161.68,161.57,15.9142]
[1724671432684,20.0,161.7,161.62,29.36297997]
[1724671433397,388.8,161.74,161.62,29.36297997]
[1724671433398,20.0,161.73,161.62,29.36297997]
[1724671433607,29.36297997,161.71,161.58,29.36297997]
[1724671433783,20.0,161.7,161.58,29.36297997]
[1724671434177,45.0,161.69,161.58,29.36297997]
[1724671434600,45.0,161.69,161.59,1.23730856]
[1724671434813,20.0,161.7,161.6,29.36297997]
[1724671435111,6.47047522,161.72,161.6,29.36297997]
[1724671435112,20.0,161.71,161.6,29.36297997]
[1724671435314,20.0,161.71,161.61,1.23719192]
[1724671436014,6.5619,161.69,161.57,15.9142]
[1724671436207,20.0,161.68,161.57,45.27717997]
[1724671437211,20.0,161.68,161.59,29.36297997]
[1724671437597,20.0,161.68,161.57,45.27717997]
[1724671438501,20.0,161.68,161.58,1.23740098]
[1724671438789,74.36297997,161.67,161.54,45.75967997]
[1724671438995,463.16297997,161.67,161.54,45.75967997]
[1724671439231,20.0,161.66,161.54,45.75967997]
[1724671439395,45.0,161.65,161.54,45.75967997]
[1724671439596,20.0,161.64,161.54,45.75967997]
[1724671440319,20.0,161.64,161.55,1.23769913]
[1724671440528,20.0,161.64,161.54,45.75967997]
[1724671440698,20.0,161.66,161.54,45.75967997]
[1724671441092,89.64837997,161.65,161.51,16.6241]
[1724671441410,20.0,161.64,161.51,45.98707997]
[1724671443224,20.0,161.64,161.52,45.0]
[1724671443395,51.5842,161.63,161.5,30.20348687]
[1724671443596,20.0,161.62,161.5,30.20348687]
[1724671443814,20.0,161.62,161.52,29.36297997]
[1724671443995,20.0,161.62,161.53,1.23782406]
[1724671445020,20.0,161.62,161.52,29.36297997]
[1724671445223,20.0,161.62,161.54,29.36297997]
[1724671445721,6.5842,161.63,161.55,1.23769415]
[1724671445916,6.5842,161.63,161.5,0.8405069]
[1724671446112,20.0,161.62,161.51,29.36297997]
[1724671447914,20.0,161.62,161.5,0.8405069]
[1724671447915,29.36297997,161.61,161.5,0.8405069]
[1724671448113,29.36297997,161.59,161.5,0.8405069]
[1724671448318,65.0,161.58,161.5,0.8405069]
[1724671448518,81.3413,161.58,161.5,0.8405069]
[1724671450228,35.37917997,161.57,161.5,0.8405069]
[1724671450432,29.36297997,161.55,161.5,0.8405069]
[1724671450612,20.0,161.54,161.5,0.8405069]
[1724671452913,20.0,161.56,161.5,0.8405069]
[1724671453118,45.0,161.55,161.5,0.8405069]
[1724671453325,20.0,161.54,161.5,0.8405069]
[1724671455337,20.0,161.56,161.5,0.8405069]
[1724671455937,29.36297997,161.53,161.5,0.8405069]
[1724671456302,20.0,161.52,161.5,0.8405069]
[1724671460347,65.0,161.51,161.5,0.8405069]
[1724671460639,20.0,161.51,161.5,0.8405069]
[1724671461037,49.36297997,161.51,161.5,0.8405069]
[1724671461247,94.36297997,161.51,161.5,0.8405069]
[1724671463924,71.7242,161.51,161.36,16.0235]
[1724671464127,65.0,161.5,161.38,29.36297997]
[1724671464448,65.0,161.5,161.39,1.23886698]
[1724671464747,65.0,161.5,161.4,29.36297997]
[1724671465044,65.0,161.5,161.41,1.23886488]
[1724671466730,71.47873498,161.5,161.41,1.23886488]
[1724671466929,71.47873498,161.5,161.38,29.36297997]
[1724671468044,71.47873498,161.5,161.39,1.23886554]
[1724671468236,71.47873498,161.5,161.4,1.23886556]
[1724671469352,29.36297997,161.47,161.36,16.0235]
[1724671469652,65.0,161.46,161.36,16.0235]
[1724671470663,29.36297997,161.45,161.36,16.0235]
[1724671470829,45.0,161.44,161.36,16.0235]
[1724671471036,20.0,161.43,161.36,16.0235]
[1724671471441,45.0,161.42,161.34,0.8405069]
[1724671471645,20.0,161.41,161.34,0.8405069]
[1724671472544,20.0,161.41,161.35,1.23940328]
[1724671472755,22.3733,161.44,161.35,1.23940328]
[1724671472756,20.0,161.43,161.35,1.23940328]
[1724671473866,20.0,161.43,161.34,30.20348687]
[1724671474472,20.0,161.43,161.35,1.23925755]
[1724671475064,20.0,161.43,161.36,1.23925757]
[1724671476643,20.0,161.43,161.34,0.8405069]
[1724671477048,26.48164886,161.43,161.34,0.8405069]
[1724671477230,26.48164886,161.43,161.35,1.2393195]
[1724671477429,26.48164886,161.43,161.34,30.20348687]
[1724671477634,20.0,161.43,161.36,29.36297997]
[1724671477847,20.0,161.43,161.37,1.23920994]
[1724671478363,20.0,161.44,161.37,1.23920994]
[1724671478934,20.0,161.44,161.34,30.20348687]
[1724671479256,45.0,161.43,161.34,0.8405069]
[1724671479750,20.0,161.42,161.34,0.8405069]
[1724671480336,20.0,161.44,161.34,0.8405069]
[1724671480642,45.0,161.43,161.34,0.8405069]
[1724671481056,20.0,161.42,161.34,0.8405069]
[1724671481856,45.0,161.41,161.34,0.8405069]
[1724671482072,20.0,161.4,161.34,0.8405069]
[1724671482358,29.36297997,161.38,161.34,0.8405069]
[1724671482669,45.0,161.37,161.34,0.8405069]
[1724671482866,65.0,161.37,161.34,0.8405069]
[1724671483154,29.36297997,161.36,161.34,0.8405069]
[1724671483358,65.0,161.35,161.34,0.8405069]
[1724671486265,20.0,161.35,161.34,0.8405069]
[1724671487959,65.0,161.35,161.34,0.8405069]
[1724671488261,71.48522302,161.35,161.34,0.8405069]
[1724671495147,100.84820299,161.35,161.34,0.8405069]
[1724671500655,100.84820299,161.35,161.25,16.5497]
[1724671500656,6.198,161.34,161.25,16.5497]
[1724671500877,29.36297997,161.3,161.25,16.5497]
[1724671501166,20.0,161.29,161.25,16.5497]
[1724671502176,20.0,161.31,161.25,16.5497]
[1724671507368,74.36297997,161.3,161.21,15.3352]
[1724671507869,20.0,161.29,161.21,15.3352]
[1724671508252,45.0,161.28,161.21,15.3352]
[1724671508453,20.0,161.27,161.21,15.3352]
[1724671509353,20.0,161.27,161.17,46.26358687]
[1724671510171,20.0,161.27,161.18,1.24056386]
[1724671511175,20.0,161.27,161.17,46.26358687]
[1724671512160,6.48783368,161.26,161.17,46.26358687]
[1724671512380,20.0,161.25,161.17,46.26358687]
[1724671513057,20.0,161.25,161.18,1.24056433]
[1724671514178,20.0,161.27,161.18,1.24056433]
[1724671514486,20.0,161.27,161.19,29.36297997]
[1724671514789,20.0,161.27,161.21,29.36297997]
[1724671514976,22.4788,161.33,161.22,1.24021143]
[1724671515177,6.48384713,161.32,161.23,15.9152]
[1724671515396,6.48384713,161.32,161.24,1.24020271]
[1724671515684,6.48384713,161.32,161.23,15.9152]
[1724671515855,6.48384713,161.32,161.23,17.15538247]
[1724671516055,6.48384713,161.32,161.24,1.24018343]
[1724671516283,6.48384713,161.32,161.23,45.27817997]
[1724671516484,257.3,161.36,161.23,45.27817997]
[1724671516692,6.48398595,161.34,161.23,45.27817997]
[1724671517693,20.0,161.33,161.23,45.27817997]
[1724671518784,20.0,161.33,161.24,1.24003286]
[1724671518987,20.0,161.33,161.23,45.27817997]
[1724671519167,20.0,161.33,161.24,1.24007434]
[1724671519861,20.0,161.33,161.25,1.24003381]
[1724671520061,20.0,161.33,161.23,45.27817997]
[1724671521184,20.0,161.33,161.25,29.36297997]
[1724671521385,20.0,161.33,161.26,1.23999449]
[1724671521811,20.0,161.33,161.25,29.36297997]
[1724671522107,49.36297997,161.33,161.23,15.9152]
[1724671522592,20.0,161.33,161.23,17.15539329]
[1724671523193,45.0,161.32,161.23,17.15539329]
[1724671523392,20.0,161.31,161.24,1.24012658]
[1724671523705,20.0,161.33,161.24,30.60310655]
[1724671524072,20.0,161.33,161.26,11.82608422]
[1724671526190,20.0,161.33,161.23,15.9152]
[1724671526380,20.0,161.33,161.27,11.82608422]
[1724671526779,20.0,161.33,161.29,6.2306]
[1724671527098,20.0,161.33,161.29,18.05668422]
[1724671527293,20.0,161.36,161.29,19.2965014]
[1724671527676,397.89651064,161.4,161.31,11.82608422]
[1724671527879,6.69011186,161.42,161.33,11.82608422]
[1724671528076,6.48247009,161.4,161.36,15.771]
[1724671528369,257.3,161.48,161.36,15.771]
[1724671528370,257.3,161.48,161.39,11.82608422]
[1724671528580,6.48008566,161.46,161.39,11.82608422]
[1724671529086,6.48008566,161.46,161.37,11.82608422]
[1724671529288,6.48008566,161.46,161.39,11.82608422]
[1724671529602,388.8,161.49,161.41,11.82608422]
[1724671529796,395.27903376,161.49,161.43,16.5523]
[1724671529972,6.47903376,161.49,161.43,16.5523]
[1724671531399,388.8,161.51,161.43,16.5523]
[1724671532684,20.0,161.5,161.43,16.5523]
[1724671534310,20.0,161.5,161.44,35.5595163]
[1724671534893,6.2194,161.57,161.46,29.5094163]
[1724671535097,395.0194,161.57,161.47,1.23840916]
[1724671535419,6.47660054,161.56,161.46,29.5094163]
[1724671536386,6.47660054,161.56,161.49,15.5041]
[1724671536586,388.8,161.59,161.5,1.23819044]
[1724671537113,6.47521328,161.58,161.5,29.5094163]
[1724671537414,388.8,161.59,161.5,29.5094163]
[1724671537794,395.27464747,161.59,161.49,15.5041]
[1724671538814,29.5094163,161.56,161.49,15.5041]
[1724671539003,29.5094163,161.54,161.49,15.5041]
[1724671539193,29.5094163,161.52,161.45,16.0752]
[1724671539509,29.5094163,161.48,161.4,16.0752]
[1724671539714,20.0,161.47,161.4,16.0752]
[1724671540395,74.5094163,161.46,161.4,16.0752]
[1724671540695,20.0,161.45,161.4,16.0752]
[1724671540916,45.0,161.44,161.4,16.0752]
[1724671541219,20.0,161.43,161.34,22.9698]
[1724671541387,45.0,161.42,161.34,22.9698]
[1724671541587,20.0,161.41,161.34,22.9698]
[1724671545804,20.0,161.43,161.34,22.9698]
[1724671546011,388.8,161.44,161.34,59.90760578]
[1724671546202,388.8,161.44,161.35,1.23926424]
[1724671546415,388.8,161.44,161.37,36.93780578]
[1724671546625,388.8,161.44,161.38,1.23896892]
[1724671546813,388.8,161.51,161.4,36.93780578]
[1724671546995,388.8,161.51,161.41,1.23884026]
[1724671547196,388.8,161.51,161.4,36.93780578]
[1724671547827,20.0,161.5,161.4,36.93780578]
[1724671548021,26.47881894,161.5,161.37,36.93780578]
[1724671548324,26.47881894,161.5,161.38,45.0]
[1724671548511,26.47881894,161.5,161.4,36.93780578]
[1724671549019,26.47881894,161.5,161.42,36.93780578]
[1724671549911,6.47881894,161.5,161.42,36.93780578]
[1724671550102,6.47881894,161.5,161.44,36.93780578]
[1724671550303,388.8,161.54,161.44,36.93780578]
[1724671550530,395.27705463,161.54,161.44,36.93780578]
[1724671551095,395.27705463,161.54,161.43,6.5136]
[1724671551096,432.21486041,161.54,161.43,6.5136]
[1724671551532,20.0,161.53,161.43,6.5136]
[1724671552230,45.0,161.52,161.43,6.5136]
[1724671552400,20.0,161.51,161.43,6.5136]
[1724671552723,20.0,161.51,161.44,1.23873557]
[1724671552905,20.0,161.51,161.44,1.23864987]
[1724671553309,20.0,161.51,161.43,6.5136]
[1724671553535,20.0,161.53,161.43,6.5136]
[1724671553708,20.0,161.53,161.44,38.17636134]
[1724671554024,20.0,161.53,161.44,36.93780578]
[1724671555316,20.0,161.53,161.43,6.5136]
[1724671555511,45.0,161.52,161.43,6.5136]
[1724671555825,20.0,161.51,161.43,6.5136]
[1724671556206,45.0,161.5,161.41,17.32299206]
[1724671556404,20.0,161.49,161.41,16.0842]
[1724671557228,20.0,161.49,161.42,36.93780578]
[1724671557613,20.0,161.53,161.42,36.93780578]
[1724671558203,20.0,161.53,161.41,16.0842]
[1724671558531,36.93780578,161.52,161.41,16.0842]
[1724671558715,453.8,161.51,161.41,16.0842]
[1724671561012,6.47928178,161.5,161.41,16.0842]
[1724671561232,65.0,161.49,161.41,16.0842]
[1724671567120,65.0,161.49,161.41,45.59692815]
[1724671567313,395.27928178,161.5,161.45,29.51272815]
[1724671567521,388.8,161.5,161.45,29.51272815]
[1724671568026,388.8,161.5,161.47,29.51272815]
[1724671568225,388.8,161.56,161.47,29.51272815]
[1724671568621,6.47669132,161.55,161.47,29.51272815]
[1724671569033,6.47669132,161.55,161.48,1.23840061]
[1724671569237,6.47669132,161.55,161.49,44.86342815]
[1724671569434,388.8,161.59,161.49,44.86342815]
[1724671569646,273.4832,161.6,161.49,44.86342815]
[1724671569647,6.47582862,161.57,161.49,44.86342815]
[1724671570725,6.47582862,161.57,161.51,29.51272815]
[1724671570943,6.2306,161.61,161.51,29.51272815]
[1724671571115,6.47496717,161.59,161.51,29.51272815]
[1724671571740,6.47496717,161.59,161.49,15.3507]
[1724671571956,20.0,161.58,161.49,15.3507]
[1724671572329,45.0,161.57,161.49,15.3507]
[1724671572524,20.0,161.56,161.49,15.3507]
[1724671572748,45.0,161.55,161.45,45.34932815]
[1724671573048,20.0,161.54,161.47,29.51272815]
[1724671573214,20.0,161.56,161.47,29.51272815]
[1724671573640,408.8,161.58,161.47,29.51272815]
[1724671573814,45.0,161.57,161.47,29.51272815]
[1724671574018,20.0,161.56,161.47,29.51272815]
[1724671574318,20.0,161.56,161.45,45.34932815]
[1724671574517,45.0,161.55,161.45,45.34932815]
[1724671574719,20.0,161.54,161.45,45.34932815]
[1724671575036,20.0,161.54,161.47,29.51272815]
[1724671575220,20.0,161.54,161.49,29.51272815]
[1724671575543,388.8,161.58,161.51,29.51272815]
[1724671577621,388.8,161.58,161.49,29.51272815]
[1724671577952,388.8,161.58,161.47,29.51272815]
[1724671578120,65.0,161.57,161.47,29.51272815]
[1724671579133,20.0,161.57,161.49,29.51272815]
[1724671581719,388.8,161.58,161.49,29.51272815]
[1724671581926,388.8,161.58,161.51,29.51272815]
[1724671582526,45.34452815,161.64,161.51,29.51272815]
[1724671582527,388.8,161.63,161.51,29.51272815]
[1724671582718,29.51272815,161.62,161.49,29.51272815]
[1724671583047,6.47467115,161.6,161.49,29.51272815]
[1724671583246,20.0,161.59,161.49,29.51272815]
[1724671584374,20.0,161.59,161.51,29.51272815]
[1724671584535,20.0,161.59,161.52,16.0987]
[1724671584857,20.0,161.59,161.53,29.51272815]
[1724671585026,6.47383761,161.62,161.53,29.51272815]
[1724671585224,20.0,161.61,161.54,1.2379042]
[1724671585653,6.47383761,161.62,161.55,30.75061112]
[1724671585855,6.3722,161.65,161.55,30.75061112]
[1724671586044,6.47280955,161.65,161.57,29.51272815]
[1724671586251,16.1832,161.68,161.59,29.51272815]
[1724671586638,6.47152452,161.67,161.59,29.51272815]
[1724671586937,6.47152452,161.67,161.57,29.51272815]
[1724671587539,45.0,161.66,161.57,29.51272815]
[1724671587751,20.0,161.65,161.57,29.51272815]
[1724671589546,20.0,161.65,161.53,29.51272815]
[1724671589547,45.0,161.64,161.53,29.51272815]
[1724671589747,20.0,161.63,161.53,29.51272815]
[1724671590050,20.0,161.63,161.54,1.23781304]
[1724671590234,20.0,161.66,161.55,30.75031927]
[1724671590434,20.0,161.66,161.57,29.51272815]
[1724671590962,20.0,161.66,161.55,29.51272815]
[1724671592037,20.0,161.66,161.56,1.23758247]
[1724671592753,20.0,161.66,161.55,29.51272815]
[1724671593255,20.0,161.66,161.57,29.51272815]
[1724671593562,20.0,161.66,161.58,1.23750833]
[1724671594364,20.0,161.66,161.6,15.1218]
[1724671594561,20.0,161.69,161.61,1.23731972]
[1724671594763,16.1832,161.7,161.61,1.23731972]
[1724671594764,22.65395381,161.7,161.61,1.23731972]
[1724671595463,22.65395381,161.7,161.6,15.1218]
[1724671595860,29.51272815,161.69,161.6,15.1218]
[1724671596546,45.0,161.68,161.6,15.1218]
[1724671596741,20.0,161.67,161.6,15.1218]
[1724671598736,20.0,161.67,161.61,1.23732733]
[1724671599038,20.0,161.69,161.61,1.23732733]
[1724671599560,20.0,161.69,161.6,15.1218]
[1724671602955,45.0,161.68,161.6,15.1218]
[1724671603160,20.0,161.67,161.6,15.1218]
[1724671604174,20.0,161.69,161.6,15.1218]
[1724671604476,45.0,161.68,161.6,15.1218]
[1724671604657,29.51272815,161.66,161.58,6.1409]
[1724671604864,20.0,161.65,161.56,16.4148]
[1724671607475,29.51272815,161.64,161.56,16.4148]
[1724671607647,65.0,161.63,161.56,16.4148]
[1724671607852,65.0,161.63,161.54,6.3484]
[1724671608277,65.0,161.63,161.55,1.23788223]
[1724671611349,65.0,161.63,161.54,6.3484]
[1724671611953,29.51272815,161.62,161.52,16.6086]
[1724671612255,29.51272815,161.6,161.48,16.0799]
[1724671612476,29.51272815,161.6,161.49,30.75091692]
[1724671612683,65.0,161.59,161.49,29.51272815]
[1724671613177,65.0,161.59,161.48,16.0799]
[1724671613754,65.0,161.59,161.49,1.23809863]
[1724671613954,65.0,161.59,161.48,16.0799]
[1724671617883,20.0,161.59,161.49,30.75082795]
[1724671618080,20.0,161.61,161.51,29.51272815]
[1724671618383,20.0,161.62,161.52,1.23787693]
[1724671618554,26.47402888,161.62,161.52,1.23787693]
[1724671619872,26.47402888,161.62,161.51,29.51272815]
[1724671621489,29.51272815,161.58,161.48,16.0799]
[1724671621789,20.0,161.57,161.48,16.0799]
[1724671623086,20.0,161.59,161.51,29.51272815]
[1724671623293,20.0,161.61,161.51,29.51272815]
[1724671624168,20.0,161.61,161.49,29.51272815]
[1724671624365,45.0,161.6,161.49,29.51272815]
[1724671624586,20.0,161.59,161.49,29.51272815]
[1724671624787,20.0,161.59,161.48,16.0799]
[1724671625487,29.51272815,161.56,161.48,16.0799]
[1724671625692,65.0,161.55,161.48,16.0799]
[1724671626190,20.0,161.55,161.48,16.0799]
[1724671626577,20.0,161.57,161.48,16.0799]
[1724671626991,20.0,161.57,161.49,1.23823735]
[1724671627181,20.0,161.57,161.48,45.59262815]
[1724671627363,20.0,161.6,161.48,45.59262815]
[1724671627569,45.0,161.59,161.48,45.59262815]
[1724671627786,20.0,161.58,161.48,45.59262815]
[1724671628288,45.0,161.57,161.48,45.55983639]
[1724671628689,20.0,161.56,161.48,45.55983639]
[1724671629874,20.0,161.56,161.48,16.04710824]
[1724671630665,20.0,161.56,161.48,45.55983639]
[1724671631192,6.47527493,161.59,161.48,45.55983639]
[1724671631566,20.0,161.58,161.5,29.51272815]
[1724671631765,20.0,161.58,161.51,1.23804794]
[1724671631970,20.0,161.58,161.5,29.51272815]
[1724671632170,388.8,161.61,161.5,29.51272815]
[1724671632171,20.0,161.6,161.5,29.51272815]
[1724671634687,395.27435836,161.61,161.54,45.62732815]
[1724671634688,6.47435836,161.61,161.54,45.62732815]
[1724671634993,388.8,161.65,161.56,29.51272815]
[1724671635168,6.1269,161.66,161.56,29.51272815]
[1724671635503,12.59929643,161.66,161.56,29.51272815]
[1724671635680,12.59929643,161.66,161.57,1.23766536]
[1724671635878,6.47239643,161.66,161.57,1.23766536]